Cogmind - Beta 17.1 @@@ ROGUE MODE // 2026.09.07 @ 19:18:30 // Winter2019/RPGLIKE Player: obl-vn Result: Self-destructed Performance ------------- Evolutions (1) 500 Regions Visited (3) 600 Robots Destroyed (27) 135 Value Destroyed (823) 823 Prototype IDs (4) 80 Alien Tech Used (0) 0 Bonus (0) 0 TOTAL SCORE: 2138 Bonus ------- None Cogmind --------- Core Integrity 376/600 Matter 300/300 Energy 265/265 System Corruption 0% Temperature Cool (0) Movement Rolling (100) Location -9/Materials Parts ------- > --- POWER (1) -------- Improved Ion Engine > --- PROPULSION (1) --- Compact Wheel > --- UTILITY (2) ------ Structural Scanner Light Armor Plating > --- WEAPON (1) ------- Hammer > --- INVENTORY (1) ---- Rocket Launcher Peak State ------------ > --- POWER ------------ Improved Ion Engine > --- PROPULSION ------- Compact Wheel > --- UTILITY ---------- Structural Scanner Light Armor Plating > --- WEAPON ----------- Rocket Launcher > --- INVENTORY -------- Hammer [Rating: 7] Favorites ----------- Power Ion Engine Engine Ion Engine Propulsion Compact Wheel Wheel Compact Wheel Utility Structural Scanner Device Structural Scanner Processor Signal Interpreter Protection Light Armor Plating Weapon Hammer Ballistic Gun Assault Rifle Launcher Rocket Launcher Impact Weapon Hammer Build | -11 -10 -10 -9 ------- Run | Yrd Mat Min Mat Slots Evolved 1 | . 1 . . Power . | . . . . Propulsion . | . . . . Utility 1 | . 1 . . Weapon . | . . . . Parts Attached 11 | 3 6 . 2 Power 2 | 1 . . 1 Engine 2 | 1 . . 1 Core . | . . . . Reactor . | . . . . Propulsion 1 | 1 . . . Treads . | . . . . Leg . | . . . . Wheel 1 | 1 . . . Hover . | . . . . Flight . | . . . . Utility 4 | . 4 . . Device 1 | . 1 . . Storage . | . . . . Processor 1 | . 1 . . Hackware . | . . . . Protection 2 | . 2 . . Artifact . | . . . . Weapon 4 | 1 2 . 1 Energy Gun . | . . . . Energy Cannon . | . . . . Ballistic Gun 2 | 1 1 . . Ballistic Cannon . | . . . . Launcher 1 | . . . 1 Special Weapon . | . . . . Impact Weapon 1 | . 1 . . Slashing Weapon . | . . . . Piercing Weapon . | . . . . Special Melee Weapon . | . . . . Unidentified Prototypes . | . . . . Parts Lost 2 | . 2 . . Power 1 | . 1 . . Propulsion . | . . . . Utility 1 | . 1 . . Weapon . | . . . . Highest Loss Streak 1 | . 1 . . To Critical Strikes . | . . . . Average Backups . | . . 1 1 Power . | . . . . Propulsion . | . . . . Utility . | . . . . Weapon . | . . 1 1 Tool/Special . | . . . . Unused Backups 1 | . 1 . . Power . | . . . . Propulsion . | . . . . Utility . | . . . . Weapon 1 | . 1 . . Tool/Special . | . . . . Average Slot Usage (%) 89 | . 90 80 84 Engine 10 | . 12 . 4 Wheel 20 | . 20 20 20 Device 19 | . 19 20 20 Processor 2 | . 2 . . Protection 16 | . 15 20 20 Ballistic Gun 4 | . 5 . . Impact Weapon 15 | . 14 20 15 Peak Build Rating 7 | 3 6 4 7 Average Rating 4 | 2 4 4 4 On Entrance 2 | . 3 4 4 Avg Prop Armor Cover (%) . | . . . . Naked Turns . | . . . . Heaviest Build 15 | 7 12 6 15 Greatest Support 16 | 16 16 16 16 Greatest Overweight (x) . | . . . . Average Overweight (x) . | . . . . Largest Inventory Capacity 1 | . 1 1 1 Average Capacity . | . . 1 1 Most Carried 1 | . 1 1 1 Average Carried . | . . 1 1 Final Capacity 1 | . 1 1 1 Final Carried 1 | . 1 1 1 Class Distribution -------------------- 100% | Mutant Dominant Class ---------------- Mutant | -10/Materials Mutant | -10/Mines Mutant | -9/Materials Resources | -11 -10 -10 -9 ----------- Run | Yrd Mat Min Mat Matter Collected 465 | 205 175 . 85 Remotely . | . . . . Salvage Created 575 | . 289 . 286 Parts 46 | . 24 . 22 Haulers Intercepted 2 | . . . 2 Recyclers Shooed 1 | . . . 1 Parts Field Recycled . | . . . . Retrieved Matter . | . . . . Parts Self-Destructed . | . . . . Prevented . | . . . . Parts Restored . | . . . . Kills | -11 -10 -10 -9 ------- Run | Yrd Mat Min Mat Combat Hostiles Destroyed 19 | . 12 . 7 Melee 7 | . 5 . 2 Guns 4 | . 4 . . AOE 4 | . . . 4 Classes Destroyed 9 | . 3 . 6 Worker 2 | . 2 . . Builder 2 | . . . 2 Hauler 2 | . . . 2 Recycler 1 | . . . 1 Watcher 1 | . 1 . . Swarmer 4 | . . . 4 Grunt 13 | . 12 . 1 Brawler 1 | . . . 1 Sentry 1 | . . . 1 Best Kill Streak 10 | . 3 . 10 Combat Bots Only 6 | . 2 . 6 Max Kills in Single Turn 6 | . 1 . 6 Gunslinging . | . . . . Exploded 2 | . . . 2 Melee 1 | . 1 . 1 Uniques/NPCs Destroyed . | . . . . Combat | -11 -10 -10 -9 -------- Run | Yrd Mat Min Mat Hostile Shots Fired 101 | . 67 . 34 Missed 33 | . 23 . 10 Hits 68 | . 44 . 24 Melee 2 | . . . 2 Projectile 66 | . 44 . 22 Critical Strikes 3 | . 2 . 1 Damage Taken 1091 | . 687 . 404 Core 799 | . 480 . 319 Absorbed by Shields . | . . . . Redirected to Core 460 | . 298 . 162 Core Remaining (%) 98 | 100 . 97 . Volleys Fired 31 | . 26 . 5 Largest 1 | . 1 . 1 Hottest 33 | . 23 . 33 Shots Fired 31 | . 26 . 5 Gun 26 | . 26 . . Cannon . | . . . . Launcher 5 | . . . 5 Special . | . . . . Kinetic 26 | . 26 . . Thermal . | . . . . Explosive 5 | . . . 5 Electromagnetic . | . . . . Robot Hit Streak 13 | . 13 . 3 Robot Miss Streak 2 | . 2 . 1 Penetration Max . | . . . . Secondary Targets . | . . . . Shots Hit Robots 67 | . 52 . 15 Core Hits 28 | . 15 . 13 Critical Kills . | . . . . Critical Parts Destroyed 5 | . 3 . 2 Critical Strikes 5 | . 3 . 2 Smash 5 | . 3 . 2 Melee Attacks 78 | . 63 . 15 Impact 78 | . 63 . 15 Slashing . | . . . . Piercing . | . . . . Sneak Attacks 4 | . 2 . 2 Combat Hostiles . | . . . . Follow-up Attacks . | . . . . Damage Inflicted 1968 | . 1173 . 795 Guns 326 | . 326 . . Cannons . | . . . . Explosions 469 | . . . 469 Melee 1173 | . 847 . 326 Ramming . | . . . . Kinetic 326 | . 326 . . Thermal . | . . . . Explosive 469 | . . . 469 Electromagnetic . | . . . . Impact 1173 | . 847 . 326 Slashing . | . . . . Piercing . | . . . . Highest Corruption 1 | . 1 1 . Average Corruption 1 | . 1 1 . Corruption Purged . | . . . . Corruption Blocked . | . . . . Effects 2 | . 2 . . Message Errors 2 | . 2 . . Overload Shots . | . . . . Overflow Damage 204 | . 117 . 87 Projectiles . | . . . . Explosions 14 | . . . 14 Melee 190 | . 117 . 73 Knockbacks 5 | . 5 . . Impact 5 | . 5 . . Kinetic . | . . . . Secondary . | . . . . Self-Inflicted Damage 51 | . . . 51 Shots 1 | . . . 1 Rammed . | . . . . Targets Rammed . | . . . . Kicked . | . . . . Crushed . | . . . . Highest Temperature 21 | . 21 . 7 Average Temperature 9 | . 10 . 5 Received Heat Transfer 432 | . 354 . 78 Siege Activations . | . . . . Martial Activations . | . . . . Shielding Activations . | . . . . Robots Disrupted . | . . . . Combat Hostiles . | . . . . Robots Corrupted 5 | . 3 . 2 Combat Hostiles 4 | . 3 . 1 Parts Fried 3 | . 2 . 1 Impact Corruptions 11 | . 7 . 4 Robots Melted . | . . . . Combat Hostiles . | . . . . Parts Melted . | . . . . Heat Transferred . | . . . . Parts Sabotaged . | . . . . Parts Stolen . | . . . . Parts Stripped . | . . . . Power Chain Reactions . | . . . . Alert | -11 -10 -10 -9 ------- Run | Yrd Mat Min Mat Maximum Alert Level 1 | . 1 . 1 Low Security (%) 94 | 100 99 100 58 Level 1 5 | . . . 41 Level 2 . | . . . . Level 3 . | . . . . Level 4 . | . . . . Level 5 . | . . . . High Security . | . . . . Max Security . | . . . . Peak Influence 244 | . 203 72 244 Initial 72 | . . 72 16 Average 79 | . 77 56 120 Influence Increases 882 | . 587 . 295 Destroy 0b10 Robot/C 380 | . 240 . 140 Destroy 0b10 Robot/NC 40 | . 15 . 25 Destroy Leader 106 | . 72 . 34 Successful Hack 12 | . 4 . 8 Disable Machine 255 | . 240 . 15 Destroy Structure 29 | . 1 . 28 Lose Combat Pursuer 60 | . 15 . 45 Influence Decreases 651 | . 402 143 106 Entered New Map 139 | . . 113 26 Time Decay 492 | . 382 30 80 Lost Part 20 | . 20 . . Squads Dispatched 3 | . 3 . . Investigation 1 | . 1 . . Extermination . | . . . . Reinforcement 2 | . 2 . . Assault . | . . . . Garrison . | . . . . Intercept . | . . . . Searches Triggered . | . . . . Construction Impeded . | . . . . Haulers Reinforced . | . . . . Active Scanning Responses . | . . . . Cargo Convoy Interrupts . | . . . . Stealth | -11 -10 -10 -9 --------- Run | Yrd Mat Min Mat Distress Signals 8 | . 4 . 4 Communications Jammed . | . . . . Distress Signals . | . . . . Times Spotted 37 | . 22 . 15 Peak Tracking Total 8 | . 3 . 8 Tactical Retreats 2 | . 1 . 1 Traps | -11 -10 -10 -9 ------- Run | Yrd Mat Min Mat Traps Triggered 5 | . 5 . . Indirectly . | . . . . Trap Hack Attempts . | . . . . Triggered . | . . . . Disarmed . | . . . . Reprogrammed . | . . . . Reused . | . . . . Traps Extracted . | . . . . Installed . | . . . . Triggered . | . . . . Machines | -11 -10 -10 -9 ---------- Run | Yrd Mat Min Mat Machines Disabled 17 | . 16 . 1 Max in Single Turn 1 | . 1 . 1 Machines Repaired . | . . . . Machines Dismantled . | . . . . Machines Sabotaged . | . . . . Overloaded Fab Kills . | . . . . Hacking | -11 -10 -10 -9 --------- Run | Yrd Mat Min Mat Machines Accessed 9 | . 7 . 2 Terminals 8 | . 6 . 2 Fabricators . | . . . . Repair Stations . | . . . . Recycling Units 1 | . 1 . . Scanalyzers . | . . . . Garrison Access . | . . . . Total Hacks 20 | . 17 . 3 Successful 10 | . 8 . 2 Failed 10 | . 9 . 1 Catastrophic 2 | . 2 . . Database Lockouts . | . . . . Manual 15 | . 12 . 3 Terminals 17 | . 14 . 3 Fabricators . | . . . . Repair Stations . | . . . . Recycling Units 3 | . 3 . . Scanalyzers . | . . . . Garrison Access . | . . . . Terminal Hacks 2 | . 2 . . Prototype ID Bank 2 | . 2 . . Fabricator Hacks . | . . . . Repair Station Hacks . | . . . . Recycling Unit Hacks 1 | . 1 . . Retrieve Components 1 | . 1 . . Scanalyzer . | . . . . Garrison Access Hacks . | . . . . Unauthorized Hacks 7 | . 5 . 2 Terminals 7 | . 5 . 2 Skim 7 | . 5 . 2 Fabricators . | . . . . Repair Stations . | . . . . Recycling Units . | . . . . Scanalyzers . | . . . . Garrison Access . | . . . . Data Cores Recovered . | . . . . Used . | . . . . Hacking Detections 4 | . 3 . 1 Full Trace Events . | . . . . Feedback Events . | . . . . Feedback Blocked . | . . . . Robot Schematics Acquired . | . . . . Robots Built . | . . . . Authchips . | . . . . Time . | . . . . Total Robot Build Rating . | . . . . Part Schematics Acquired . | . . . . Parts Built . | . . . . Authchips . | . . . . Time . | . . . . Total Part Build Rating . | . . . . Part Studies Acquired . | . . . . Parts Repaired . | . . . . Time . | . . . . Parts Recycled . | . . . . Recycled Matter . | . . . . Retrieved Matter . | . . . . Retrieved Components 10 | . 10 . . Parts Scanalyzed . | . . . . Part Schematics Acquired . | . . . . Parts Damaged . | . . . . Bothacking | -11 -10 -10 -9 ------------ Run | Yrd Mat Min Mat Used RIF Installer . | . . . . Robots Hacked . | . . . . Non-combat . | . . . . Combat . | . . . . Robot Hacks Applied . | . . . . Relay Couplers Released . | . . . . Fabnet Peak Effective % . | . . . . Robots Rewired . | . . . . Allies Hacked . | . . . . Hacks Repelled . | . . . . Allies | -11 -10 -10 -9 -------- Run | Yrd Mat Min Mat Total Allies . | . . . . Largest Group . | . . . . Highest-Rated Group . | . . . . Highest-Rated Ally . | . . . . Total Orders . | . . . . Ally Attacks . | . . . . Total Damage . | . . . . Kills . | . . . . Allies Corrupted . | . . . . Allies Melted . | . . . . Intel | -11 -10 -10 -9 ------- Run | Yrd Mat Min Mat Active Infowar (turns) 1264 | . 1016 79 169 Structural 1264 | . 1016 79 169 Robot Analysis Total . | . . . . Derelict Logs Recovered 1 | . . 1 . Drone Launches . | . . . . Drone Recoveries . | . . . . Exploration | -11 -10 -10 -9 ------------- Run | Yrd Mat Min Mat Turns Passed 1306 | 35 1023 79 169 Spaces Moved 885 | 37 677 72 99 Core 11 | 11 . . . Treads . | . . . . Legs . | . . . . Wheels 874 | 26 677 72 99 Hover . | . . . . Flight . | . . . . Fastest Speed 50 | 50 100 100 100 Average Speed 99 | 85 100 100 100 Slowest Speed 100 | 100 100 100 100 Overloaded Moves . | . . . . Propulsion Burnouts . | . . . . Robots Hopped . | . . . . Potential Cave-ins . | . . . . Cave-ins Triggered . | . . . . Exploration Rate (%) 33 | 3 97 21 14 Regions Visited 3 Branch Regions 1 Pre-discovered Areas 1 | . . 1 . Known Exits Taken . | . . . . Unknown Exits Taken 3 | 1 1 1 . Scrap Searched . | . . . . Spaces Dug 1 | . 1 . . Terrain Destroyed 28 | . 1 . 27 Melee 1 | . 1 . . Projectile . | . . . . AOE 27 | . . . 27 Terrain Rammed . | . . . . Walls Destroyed . | . . . . Machines Disabled . | . . . . Actions | -11 -10 -10 -9 --------- Run | Yrd Mat Min Mat Total 1141 | 39 887 79 136 Wait 98 | . 81 8 9 Move 882 | 36 676 71 99 Hop . | . . . . Pick Up 2 | . 2 . . Fast Attach 10 | 3 6 . 1 Attach . | . . . . Detach . | . . . . Swap 2 | . . . 2 Drop 4 | . 4 . . Fire 31 | . 26 . 5 Melee 78 | . 63 . 15 Ram . | . . . . Kick . | . . . . Crush . | . . . . Escape Stasis . | . . . . Rewire . | . . . . Trap . | . . . . Miscellaneous 34 | . 29 . 5 Route ------- -11/Scrapyard -10/Materials (discovered 4 exits: *Mat x3 / [*Min]) -10/Mines (discovered 2 exits: *Mat / [*Sub]) -9/Materials History --------- Turn | Location | Event 4 | -11/Scrapyard | Discovered new exit (range 15) 36 | -11/Scrapyard | Entered Materials 71 | -10/Materials | Upgraded with Utility slot (x1) 204 | -10/Materials | Discovered new exit (range 15) 313 | -10/Materials | Build established: Mutant 317 | -10/Materials | Discovered new exit (range 13) 427 | -10/Materials | Discovered new exit (range 16) 668 | -10/Materials | Reached level 2 921 | -10/Materials | Discovered new exit (range 5) 1059 | -10/Materials | Entered Mines 1061 | -10/Mines | Reached level 3 1117 | -10/Mines | Discovered new exit (range 5) 1131 | -10/Mines | Learned location of Storage (-9) 1134 | -10/Mines | Discovered new exit (range 10) 1138 | -10/Mines | Entered Materials 1140 | -9/Materials | Reached level 4 1238 | -9/Materials | Core integrity fell below 50% 1307 | -9/Materials | Self-destructed Last Messages --------------- 01283_ R-06 Scavenger collects Com. Wheel. 01283_ K-01 Serf collects debris. 01284_ U-05 Engineer lays Concrete. 01285_ U-05 Engineer builds a Wall. 01287_ R-06 Scavenger collects Lgt. Treads. 01289_ K-01 Serf collects debris. 01289_ U-05 Engineer lays Concrete. 01298_ W-16 Scout sends out distress signal. 01298_ U-05 Engineer lays Concrete. 01299_ A-02 Transporter suffers critical hit (Smash). 01299_ Destroyed Ion Engine. 01299_ Destroyed Transport Network Coupler. 01299_ A-02 Transporter system corrupted by crushing effect. 01300_ A-02 Transporter system terminally corrupted. 01300_ Weight Redist. System fried. 01301_ Extracted 10 matter. 01301_ U-05 Engineer lays Concrete. Map ----- +----------------------------------------------------+ | ???????????????#+### ######## ????????????? | | ??????????????? ######## ????????????? | | ????????????????? # # ????????????? | | ?????????????????? # # ????????????? | | ????????????######## # """ [# ????????????? | | ???????????? ######## ## """ # ????????????? | | ???????????? # # ## """ # ???""???????? | | ???????????? # # ## %* # """ # ?? | | ???????????? # % + # # ###+##########?? | | ??????????????????? # [=! ? | | ??????????????????? # %[%=! ? | | ??????????????????? # !%= ? | | ??????????????????? # a###+### ######### ? | | ??????????????????? #t #*= T # ???? | | ??????????????????? # #| [ """ # ???? | | ??????????????????? # """ # ???? | | ??????????????????? # "" # ???? | | ??????????????????? # # + ???? | | ??????????????????? # / # ???? | | ???????????????????## #### # ???? | | ???????????????????## ######## # ? ## | | ???????????????????## ############+##### ? # | | ???????????????????## ![##????###### ##### ? # | | ???????????????????##![w##????????## ##???? # | | ???????????????????## !]##???????? # ##??? + | | ???????????????????## @ ##???????? # ##### # | | ???????????????????## ##???????? # ##### # | | ???????????????????## ##???????? # ## | | ???????????????????## g##???????? # | | ??????????????????? k ???????? # | | ???????????????????? /??????? # | | ??????????????????? ## ##??????? # " """ | | ??????????????????? ## ##??????? # """""" | | ?????????????????? |?#+##???????##" """ " | | ?????????????????? ? ???????##T | | ?????????????????"T" ?? ????????##" | | ????????????????? ?? ????????## | | ?????????????????? #?""????????## | | ??????????????????#####???????????## ## | | ?????????????????? ##???????????## ## | | ??????????????????????????????????#####+###+### | | ??????????????????????????????????##### | | ?????????????????????????????????????## | | ?????????????????????????????????????## | | ?????????????????????????????????????## | | ?????????????????????????????????????## | | ?????????????????????????????????????## | | ?????????????????????????????????????## | | ?????????????????????????????????????## | | ?????????????????????????????????????########## | +----------------------------------------------------+ Best States ------------- Heat Dissipation 25 Energy Generation 12 Energy Capacity 265 Matter Stores 300 Matter Capacity 300 Sight Range 16 Terrain Scan Density 10 Armor Coverage 150 Evasion (%) 40 Item Schematics ----------------- None Robot Schematics ------------------ None Fabricated ------------ Nothing Repaired ---------- Nothing Studied --------- None Alien Tech Used ----------------- None Achievements -------------- None Challenges ------------ None RPGLIKE | -11 -10 -10 -9 --------- Run | Yrd Mat Min Mat Levels Raised 3 | . 1 1 1 XP Earned 8675 | 3000 2750 500 2425 XP Spent 750 | . 750 . . Upgrades 2 | . 2 . . Utility Slot 1 | . 1 . . Inventory Capacity 1 | . 1 . . Protomatter Created 355 | . 298 . 57 Integrity Restored 650 | . 539 . 111 Core 575 | . 464 . 111 Parts 75 | . 75 . . Protomatter Decayed 114 | . 114 . . Game ------ Seed FieldLongswordMount Manual? 0 Play Time 00:11:28 Cumulative 272.7 hours Start 2026.09.07 @ 19:05:15 End 2026.09.07 @ 19:18:30 Sessions 1 Manual Loads 0 Difficulty Rogue Special Mode Winter2019/RPGLIKE Game No. 182 Rogue 182 Adventurer 0 Explorer 0 Win Type - Total 6 Types 2/0/2/1/0/0/0/1/0/0 Lore% 63 Gallery% 75 Achievement% 59 Wizard Run 0 Options --------- Layout 2 ASCII 0 Keyboard 0 Movement Mouse Keybinds 0 Fullscreen 1 Font 32/Cog Map View 50x44 Zoom Use 0% Tactical HUD 1 Map Filters NONE Filters NONE Steam 1 RUN: 4ef0800a-eb59-4d8a-a296-6f34df9f3ff5